fUSD/lending_fUSD_20260106
["ID","MTS","AMOUNT","RATE_DAILY","PERIOD"]
[400491925,1767662286011,400.0,0.00032876,120]
[400491926,1767662286092,500.0,0.00032876,120]
[400491927,1767662286705,500.0,0.00032876,120]
[400491928,1767662287060,500.0,0.00032876,120]
[400491929,1767662287377,500.0,0.00032876,120]
[400491930,1767662288017,428.53311407,0.00032876,120]
[400491931,1767662288090,500.0,0.00032876,120]
[400491932,1767662288224,452.77750122,0.00032876,120]
[400491933,1767662289221,500.0,0.00032876,120]
[400491934,1767662289624,500.0,0.00032876,120]
[400491935,1767662289938,382.53928357,0.00032876,120]
[400491936,1767662290058,619.47319739,0.00032876,120]
[400491937,1767662290751,400.0,0.00032876,120]
[400491938,1767662291232,413.88590239,0.00032876,120]
[400491939,1767662291972,411.74857606,0.00032876,120]
[400491940,1767662292121,500.0,0.00032876,120]
[400491941,1767662292678,500.0,0.00032876,120]
[400491942,1767662292921,500.0,0.00032876,120]
[400491943,1767662293027,500.0,0.00032876,120]
[400491944,1767662293201,417.02549639,0.00032876,120]
[400491945,1767662293309,300.0,0.00032876,120]
[400491946,1767662294231,500.0,0.00032876,120]
[400491947,1767662295430,400.0,0.00032876,120]
[400491948,1767662296056,500.0,0.00032876,120]
[400491949,1767662296460,446.14898251,0.00032876,120]
[400491950,1767662296996,500.0,0.00032876,120]
[400491951,1767662297493,300.0,0.00032876,120]
[400491952,1767662298806,400.0,0.00032876,120]
[400491953,1767662299509,438.97023252,0.00032876,120]
[400491954,1767662299699,400.0,0.00032876,120]
[400491955,1767662299796,500.0,0.00032876,120]
[400491956,1767662299992,500.0,0.00032876,120]
[400491957,1767662300281,450.16219433,0.00032876,120]
[400491958,1767662300409,400.0,0.00032876,120]
[400491959,1767662301586,500.0,0.00032876,120]
[400491960,1767662301838,400.0,0.00032876,120]
[400491961,1767662302242,500.0,0.00032876,120]
[400491962,1767662302725,407.82646751,0.00032876,120]
[400491963,1767662302945,410.72287449,0.00032876,120]
[400491964,1767662303967,500.0,0.00032876,120]
[400491965,1767662304448,508.87964247,0.00032876,120]
[400491966,1767662304595,500.0,0.00032876,120]
[400491967,1767662304867,500.0,0.00032876,120]
[400491968,1767662304996,400.0,0.00032876,120]
[400491969,1767662305954,500.0,0.00032876,120]
[400491970,1767662306064,540.77254573,0.00032876,120]
[400491971,1767662306272,339.75439669,0.00032876,120]
[400491972,1767662306535,500.0,0.00032876,120]
[400491973,1767662308195,500.0,0.00032876,120]
[400491974,1767662308544,309.71593805,0.00032876,120]
[400491975,1767662308621,500.0,0.00032876,120]
[400491976,1767662308891,500.0,0.00032876,120]
[400491977,1767662309538,400.0,0.00032876,120]
[400491978,1767662310260,400.0,0.00032876,120]
[400491979,1767662310618,254.42047441,0.00032876,120]
[400491980,1767662310882,400.0,0.00032876,120]
[400491981,1767662312485,500.0,0.00032876,120]
[400491982,1767662314225,500.0,0.00032876,120]
[400491983,1767662314659,400.0,0.00032876,120]
[400491984,1767662315066,500.0,0.00032876,120]
[400491985,1767662315196,500.0,0.00032876,120]
[400491986,1767662315385,317.29366889,0.00032876,120]
[400491987,1767662315735,500.0,0.00032876,120]
[400491988,1767662315807,500.0,0.00032876,120]
[400491989,1767662317675,430.99286565,0.00032876,120]
[400491990,1767662318532,500.0,0.00032876,120]
[400491991,1767662318660,500.0,0.00032876,120]
[400491992,1767662318871,400.0,0.00032876,120]
[400491993,1767662318946,352.39240302,0.00032876,120]
[400491994,1767662319260,500.0,0.00032876,120]
[400491995,1767662319349,468.99731325,0.00032876,120]
[400491996,1767662319414,300.0,0.00032876,120]
[400491997,1767662319709,607.2349194,0.00032876,120]
[400491998,1767662319778,489.07761767,0.00032876,120]
[400491999,1767662320665,500.0,0.00032876,120]
[400492000,1767662320775,471.08787643,0.00032876,120]
[400492001,1767662321782,468.5292306,0.00032876,120]
[400492002,1767662322564,500.0,0.00032876,120]
[400492003,1767662322688,595.55422569,0.00032876,120]
[400492004,1767662323124,500.0,0.00032876,120]
[400492005,1767662324234,441.28314542,0.00032876,120]
[400492006,1767662324304,500.0,0.00032876,120]
[400492007,1767662324936,500.0,0.00032876,120]
[400492008,1767662325102,306.32758917,0.00032876,120]
[400492009,1767662325295,469.00513154,0.00032876,120]
[400492010,1767662325451,500.0,0.00032876,120]
[400492011,1767662326019,500.0,0.00032876,120]
[400492012,1767662326567,500.0,0.00032876,120]
[400492013,1767662326668,500.0,0.00032876,120]
[400492014,1767662326831,491.26181538,0.00032876,120]
[400492015,1767662326937,400.0,0.00032876,120]
[400492016,1767662327007,306.56927238,0.00032876,120]
[400492017,1767662328152,470.57962629,0.00032876,120]
[400492018,1767662329500,500.0,0.00032876,120]
[400492019,1767662330192,500.0,0.00032876,120]
[400492020,1767662330321,606.58443437,0.00032876,120]
[400492021,1767662330507,516.70246875,0.00032876,120]
[400492022,1767662331102,500.0,0.00032876,120]
[400492023,1767662331704,447.73565072,0.00032876,120]
[400492024,1767662332282,500.0,0.00032876,120]
[400492025,1767662333819,434.75451459,0.00032876,120]
[400492026,1767662333890,400.0,0.00032876,120]
[400492027,1767662334006,1260.54,8.193e-05,2]
[400492028,1767662334125,500.0,0.00032876,120]
[400492029,1767662334231,1260.54,8.624e-05,2]
[400492030,1767662334436,300.0,0.00032876,120]
[400492031,1767662334523,500.0,0.00032876,120]
[400492032,1767662334599,400.0,0.00032876,120]
[400492033,1767662334657,1260.54,9.055e-05,2]
[400492034,1767662334849,384.77,0.00032876,120]
[400492035,1767662335379,1260.54,9.486e-05,2]
[400492036,1767662335435,1260.54,9.917e-05,2]
[400492037,1767662335469,1260.54,0.00010348,2]
[400492038,1767662335659,1260.54,0.0001078,2]
[400492039,1767662335864,1260.54,0.00011211,2]
[400492040,1767662336079,1260.54,0.00011642,2]
[400492041,1767662336302,1260.54,0.00012073,2]
[400492042,1767662336534,1260.54,0.00012504,2]
[400492043,1767662336768,1260.54,0.00012935,2]
[400492044,1767662336920,400.0,0.00032876,120]
[400492045,1767662336953,1260.54,0.00013367,2]
[400492046,1767662337187,1260.54,0.00013798,2]
[400492047,1767662337418,1260.54,0.00014229,2]
[400492048,1767662337533,500.0,0.00032876,120]
[400492049,1767662337642,1260.54,0.0001466,2]
[400492050,1767662337865,200.0,0.00032876,120]
[400492051,1767662337898,1260.54,0.00015091,2]
[400492052,1767662338048,1260.54,0.00015523,2]
[400492053,1767662338266,1260.54,0.00015954,2]
[400492054,1767662338467,1260.54,0.00016385,2]
[400492055,1767662339457,500.0,0.00032876,120]
[400492056,1767662339798,317.50525792,0.00032876,120]
[400492057,1767662340318,500.0,0.00032876,120]
[400492058,1767662340968,400.0,0.00032876,120]
[400492059,1767662341177,500.0,0.00032876,120]
[400492060,1767662341533,500.0,0.00032876,120]
[400492061,1767662341745,415.92353774,0.00032876,120]
[400492062,1767662342319,641.02756563,0.00032876,120]
[400492063,1767662342621,500.0,0.00032876,120]
[400492064,1767662342937,300.0,0.00032876,120]
[400492065,1767662344299,440.7150287,0.00032876,120]
[400492066,1767662344373,412.31685991,0.00032876,120]
[400492067,1767662344448,500.0,0.00032876,120]
[400492068,1767662344589,463.98216555,0.00032876,120]
[400492069,1767662344666,500.0,0.00032876,120]
[400492070,1767662344891,500.0,0.00032876,120]
[400492071,1767662345728,500.0,0.00032876,120]
[400492072,1767662346105,500.0,0.00032876,120]
[400492073,1767662346807,485.83448216,0.00032876,120]
[400492074,1767662346886,500.0,0.00032876,120]
[400492075,1767662347013,622.09,0.00032876,120]
[400492076,1767662347060,999.0,0.00016369,3]
[400492077,1767662347147,500.0,0.00032876,120]
[400492078,1767662347392,500.0,0.00032876,120]
[400492079,1767662348321,500.0,0.00032876,120]
[400492080,1767662348454,519.96879157,0.00032876,120]
[400492081,1767662348883,457.63756019,0.00032876,120]
[400492082,1767662350801,500.0,0.00032876,120]
[400492083,1767662351130,500.0,0.00032876,120]
[400492084,1767662351203,500.0,0.00032876,120]
[400492085,1767662351295,533.70772992,0.00032876,120]
[400492086,1767662351448,500.0,0.00032876,120]
[400492087,1767662351621,500.0,0.00032876,120]
[400492088,1767662351956,500.0,0.00032876,120]
[400492089,1767662352188,460.85068214,0.00032876,120]
[400492090,1767662352330,500.0,0.00032876,120]
[400492091,1767662353766,414.63864295,0.00032876,120]
[400492092,1767662354985,406.23121427,0.00032876,120]
[400492093,1767662355148,421.01026901,0.00032876,120]
[400492094,1767662355361,400.0,0.00032876,120]
[400492095,1767662357955,500.0,0.00032876,120]
[400492096,1767662358026,500.0,0.00032876,120]
[400492097,1767662358313,300.0,0.00032876,120]
[400492098,1767662358542,400.0,0.00032876,120]
[400492099,1767662358689,409.41325459,0.00032876,120]
[400492100,1767662359059,500.0,0.00032876,120]
[400492101,1767662359425,500.0,0.00032876,120]
[400492102,1767662359570,500.0,0.00032876,120]
[400492103,1767662359837,400.0,0.00032876,120]
[400492104,1767662360721,500.0,0.00032876,120]
[400492105,1767662361301,500.0,0.00032876,120]
[400492106,1767662361820,500.0,0.00032876,120]
[400492107,1767662361950,400.0,0.00032876,120]
[400492108,1767662362547,605.45118163,0.00032876,120]
[400492109,1767662362969,404.55529323,0.00032876,120]
[400492110,1767662363468,400.0,0.00032876,120]
[400492111,1767662363749,500.0,0.00032876,120]
[400492112,1767662364025,500.0,0.00032876,120]
[400492113,1767662364280,500.0,0.00032876,120]
[400492114,1767662365925,400.0,0.00032876,120]
[400492115,1767662367333,500.0,0.00032876,120]
[400492116,1767662367655,258.75912416,0.00032876,120]
[400492117,1767662367856,400.0,0.00032876,120]
[400492118,1767662368684,500.0,0.00032876,120]
[400492119,1767662368799,206.88345513,0.00032876,120]
[400492120,1767662369179,500.0,0.00032876,120]
[400492121,1767662369513,300.0,0.00032876,120]
[400492122,1767662369979,500.0,0.00032876,120]
[400492123,1767662370284,500.0,0.00032876,120]
[400492124,1767662370447,500.0,0.00032876,120]
[400492125,1767662370789,300.0,0.00032876,120]
[400492126,1767662372129,300.0,0.00032876,120]
[400492127,1767662372213,500.0,0.00032876,120]
[400492128,1767662372285,500.0,0.00032876,120]
[400492129,1767662372523,400.0,0.00032876,120]
[400492130,1767662372603,434.29457652,0.00032876,120]
[400492131,1767662375297,414.85336003,0.00032876,120]
[400492132,1767662376093,500.0,0.00032876,120]
[400492133,1767662376342,457.82147347,0.00032876,120]
[400492134,1767662376436,316.60131033,0.00032876,120]
[400492135,1767662376711,400.0,0.00032876,120]
[400492136,1767662377814,480.43441409,0.00032876,120]
[400492137,1767662378955,500.0,0.00032876,120]
[400492138,1767662379293,217.18783256,0.00032876,120]
[400492139,1767662379570,500.0,0.00032876,120]
[400492140,1767662379888,391.00048868,0.00032876,120]
[400492141,1767662380433,400.0,0.00032876,120]
[400492142,1767662381269,500.0,0.00032876,120]
[400492143,1767662381346,500.0,0.00032876,120]
[400492144,1767662381607,500.0,0.00032876,120]
[400492145,1767662381899,400.0,0.00032876,120]
[400492146,1767662382519,500.0,0.00032876,120]
[400492147,1767662382602,500.0,0.00032876,120]
[400492148,1767662382870,400.0,0.00032876,120]
[400492149,1767662382989,300.0,0.00032876,120]
[400492150,1767662383375,458.66327442,0.00032876,120]
[400492151,1767662384178,400.0,0.00032876,120]
[400492152,1767662385307,430.76233166,0.00032876,120]
[400492154,1767662387027,391.39397235,0.00032876,120]
[400492155,1767662389147,500.0,0.00032876,120]
[400492156,1767662389486,500.0,0.00032876,120]
[400492157,1767662389765,524.50209106,0.00032876,120]
[400492158,1767662389851,400.0,0.00032876,120]
[400492159,1767662389924,500.0,0.00032876,120]
[400492160,1767662390170,500.0,0.00032876,120]
[400492161,1767662390405,476.07964833,0.00032876,120]
[400492162,1767662390821,400.0,0.00032876,120]
[400492163,1767662391606,517.92432375,0.00032876,120]
[400492164,1767662393772,429.14115516,0.00032876,120]
[400492165,1767662395426,400.0,0.00032876,120]
[400492166,1767662395501,500.0,0.00032876,120]
[400492167,1767662395981,400.0,0.00032876,120]
[400492168,1767662397932,400.0,0.00032876,120]
[400492169,1767662400010,534.29466832,0.00032876,120]
[400492170,1767662400149,422.42230628,0.00032876,120]
[400492171,1767662400522,500.0,0.00032876,120]
[400492172,1767662400859,342.88163227,0.00032876,120]
[400492173,1767662401770,400.0,0.00032876,120]
[400492174,1767662402658,402.97438948,0.00032876,120]
[400492175,1767662403042,500.0,0.00032876,120]
[400492176,1767662403352,300.0,0.00032876,120]
[400492177,1767662403758,273.50360677,0.00032876,120]
[400492178,1767662403844,500.0,0.00032876,120]
[400492179,1767662403970,150.0,0.00016358,2]
[400492180,1767662404170,302.2265887,0.00032876,120]
[400492181,1767662404259,500.0,0.00032876,120]
[400492182,1767662404441,463.34077068,0.00032876,120]
[400492183,1767662404608,400.0,0.00032876,120]
[400492184,1767662405620,500.0,0.00032876,120]
[400492185,1767662405970,500.0,0.00032876,120]
[400492186,1767662406300,404.27091909,0.00032876,120]
[400492187,1767662406392,500.0,0.00032876,120]
[400492188,1767662407690,400.0,0.00032876,120]
[400492189,1767662408348,441.44292847,0.00032876,120]
[400492190,1767662408688,400.0,0.00032876,120]
[400492191,1767662408823,400.0,0.00032876,120]
[400492192,1767662408905,630.77881152,0.00032876,120]
[400492193,1767662410064,510.92234966,0.00032876,120]
[400492194,1767662410169,500.0,0.00032876,120]
[400492195,1767662410247,400.0,0.00032876,120]
[400492196,1767662410482,289.69152321,0.00032876,120]
[400492197,1767662410658,500.0,0.00032876,120]
[400492198,1767662411117,551.65391363,0.00032876,120]
[400492199,1767662411278,419.76470854,0.00032876,120]
[400492200,1767662411616,407.61428633,0.00032876,120]
[400492201,1767662411822,426.24783642,0.00032876,120]
[400492202,1767662413262,311.19183603,0.00032876,120]
[400492203,1767662413965,507.39346822,0.00032876,120]
[400492204,1767662414345,500.0,0.00032876,120]
[400492205,1767662414716,360.0,0.00032876,120]
[400492206,1767662415781,400.0,0.00032876,120]
[400492207,1767662415941,500.0,0.0001634,2]
[400492208,1767662416340,400.0,0.00032876,120]
[400492209,1767662416769,433.64068803,0.00032876,120]
[400492210,1767662417181,400.0,0.00032876,120]
[400492211,1767662418069,400.0,0.00032876,120]
[400492212,1767662419422,196.02681601,0.00032876,120]
[400492213,1767662419809,500.0,0.00032876,120]
[400492214,1767662420035,400.0,0.00032876,120]
[400492215,1767662420114,491.08418097,0.00032876,120]
[400492216,1767662420192,500.0,0.00032876,120]
[400492217,1767662420536,400.0,0.00032876,120]
[400492218,1767662422068,548.34112202,0.00032876,120]
[400492219,1767662422271,500.0,0.00032876,120]
[400492220,1767662422512,219.06418381,0.00032876,120]
[400492221,1767662422641,500.0,0.00032876,120]
[400492222,1767662423081,500.0,0.00032876,120]
[400492223,1767662423187,446.12,0.00032876,120]
[400492224,1767662424801,400.0,0.00032876,120]
[400492225,1767662425241,500.0,0.00032876,120]
[400492226,1767662425395,500.0,0.00032876,120]
[400492227,1767662425480,500.0,0.00032876,120]
[400492228,1767662425606,535.06494421,0.00032876,120]
[400492229,1767662426789,500.0,0.00032876,120]
[400492230,1767662427060,500.0,0.00032876,120]
[400492231,1767662427364,500.0,0.00032876,120]
[400492232,1767662427642,500.0,0.00032876,120]
[400492233,1767662427881,500.0,0.00032876,120]
[400492234,1767662428026,311.63616351,0.00032876,120]
[400492235,1767662428134,500.0,0.00032876,120]
[400492236,1767662428361,500.0,0.00032876,120]
[400492237,1767662428524,315.33965945,0.00032876,120]
[400492238,1767662428656,500.0,0.00032876,120]
[400492239,1767662429195,500.0,0.00032876,120]
[400492240,1767662429441,500.0,0.00032876,120]
[400492241,1767662429688,500.0,0.00032876,120]
[400492242,1767662429930,500.0,0.00032876,120]
[400492243,1767662430579,479.57781152,0.00032876,120]
[400492244,1767662431099,500.0,0.00032876,120]
[400492245,1767662431423,200.0,0.00032876,120]
[400492246,1767662432299,400.0,0.00032876,120]
[400492247,1767662432736,500.0,0.00032876,120]
[400492248,1767662432972,303.23252351,0.00032876,120]
[400492249,1767662434476,457.18736746,0.00032876,120]
[400492250,1767662434679,500.0,0.00032876,120]
[400492251,1767662435373,400.0,0.00032876,120]
[400492252,1767662436798,400.0,0.00032876,120]
[400492253,1767662437831,480.35310339,0.00032876,120]
[400492254,1767662439626,400.0,0.00032876,120]
[400492255,1767662439808,500.0,0.00032876,120]
[400492256,1767662440123,209.86192477,0.00032876,120]
[400492257,1767662440570,500.0,0.00032876,120]
[400492258,1767662440689,400.0,0.00032876,120]
[400492259,1767662440836,575.38564995,0.00032876,120]
[400492260,1767662440954,500.0,0.00032876,120]
[400492261,1767662442841,500.0,0.00032876,120]
[400492262,1767662442917,500.0,0.00032876,120]
[400492263,1767662443084,508.10594749,0.00032876,120]
[400492264,1767662443253,500.0,0.00032876,120]
[400492265,1767662443332,517.66966104,0.00032876,120]
[400492266,1767662443502,300.0,0.00032876,120]
[400492267,1767662444672,445.33,0.00032876,120]
[400492268,1767662444760,400.0,0.00032876,120]
[400492269,1767662445210,460.14878367,0.00032876,120]
[400492270,1767662446237,478.19252783,0.00032876,120]
[400492271,1767662446702,400.0,0.00032876,120]
[400492272,1767662446778,500.0,0.00032876,120]
[400492273,1767662447006,406.82587324,0.00032876,120]
[400492274,1767662447662,400.0,0.00032876,120]
[400492275,1767662447944,515.67428606,0.00032876,120]
[400492276,1767662450721,412.82266519,0.00032876,120]
[400492277,1767662450796,500.0,0.00032876,120]
[400492278,1767662450871,520.74736229,0.00032876,120]
[400492279,1767662450948,500.0,0.00032876,120]
[400492280,1767662451107,325.002456,0.00032876,120]
[400492281,1767662452700,400.0,0.00032876,120]
[400492282,1767662453312,473.98,0.00032876,120]
[400492283,1767662453404,400.0,0.00032876,120]
[400492284,1767662456166,500.0,0.00032876,120]
[400492285,1767662456487,457.20483335,0.00032876,120]
[400492286,1767662456700,500.0,0.00032876,120]
[400492287,1767662456796,404.43788449,0.00032876,120]
[400492288,1767662456992,385.89380776,0.00032876,120]
[400492289,1767662458290,400.0,0.00032876,120]
[400492290,1767662458420,500.0,0.00032876,120]
[400492291,1767662458682,200.16,0.00032876,120]
[400492292,1767662459000,1521.76,0.00016446,2]
[400492293,1767662459803,500.0,0.00032876,120]
[400492294,1767662460245,328.45109176,0.00032876,120]
[400492295,1767662460852,500.0,0.00032876,120]
[400492296,1767662461108,500.0,0.00032876,120]
[400492297,1767662462160,500.0,0.00032876,120]
[400492298,1767662462825,429.41310484,0.00032876,120]
[400492299,1767662462913,500.0,0.00032876,120]
[400492300,1767662463044,544.96288474,0.00032876,120]
[400492301,1767662463127,408.2814605,0.00032876,120]
[400492302,1767662463205,500.0,0.00032876,120]
[400492303,1767662463871,500.0,0.00032876,120]
[400492304,1767662465619,232.53112155,0.00032876,120]
[400492305,1767662465715,532.98966696,0.00032876,120]
[400492306,1767662465939,442.82402677,0.00032876,120]
[400492307,1767662466138,400.0,0.00032876,120]
[400492308,1767662467212,500.0,0.00032876,120]
[400492309,1767662467612,581.16433801,0.00032876,120]
[400492310,1767662467690,500.0,0.00032876,120]
[400492311,1767662467890,349.6,0.00032876,120]
[400492312,1767662469856,641.752944,0.00032876,120]
[400492313,1767662469935,328.4419324,0.00032876,120]
[400492314,1767662470674,400.0,0.00032876,120]
[400492315,1767662471555,413.18195599,0.00032876,120]
[400492316,1767662471990,500.0,0.00032876,120]
[400492317,1767662473950,500.0,0.00032876,120]
[400492318,1767662474572,500.0,0.00032876,120]
[400492319,1767662474678,500.0,0.00032876,120]
[400492320,1767662474838,500.0,0.00032876,120]
[400492321,1767662474943,500.0,0.00032876,120]
[400492322,1767662475097,500.0,0.00032876,120]
[400492323,1767662475365,500.0,0.00032876,120]
[400492324,1767662475614,500.0,0.00032876,120]
[400492325,1767662475843,500.0,0.00032876,120]
[400492326,1767662475996,467.18262915,0.00032876,120]
[400492327,1767662476087,500.0,0.00032876,120]
[400492328,1767662476343,500.0,0.00032876,120]
[400492329,1767662476571,211.54,0.00032876,120]
[400492330,1767662476884,500.0,0.00032876,120]
[400492331,1767662477137,456.49117196,0.00032876,120]
[400492332,1767662477403,450.89936362,0.00032876,120]
[400492333,1767662477493,500.0,0.00032876,120]
[400492334,1767662479099,400.0,0.00032876,120]
[400492335,1767662480523,400.0,0.00032876,120]
[400492336,1767662482451,400.0,0.00032876,120]
[400492337,1767662483088,400.0,0.00032876,120]
[400492338,1767662483282,300.0,0.00032876,120]
[400492339,1767662483932,409.94107134,0.00032876,120]
[400492340,1767662485226,420.0,0.00032876,120]
[400492341,1767662485307,500.0,0.00032876,120]
[400492342,1767662485535,500.0,0.00032876,120]
[400492343,1767662485938,400.0,0.00032876,120]
[400492344,1767662486340,301.28,0.00032876,120]
[400492345,1767662486840,500.0,0.00032876,120]
[400492346,1767662487003,500.0,0.00032876,120]
[400492347,1767662487183,500.0,0.00032876,120]
[400492348,1767662488042,500.0,0.00032876,120]
[400492349,1767662488391,500.0,0.00032876,120]
[400492350,1767662488668,288.45433716,0.00032876,120]
[400492351,1767662488912,400.0,0.00032876,120]
[400492352,1767662489060,500.0,0.00032876,120]
[400492353,1767662489321,500.0,0.00032876,120]
[400492354,1767662489588,500.0,0.00032876,120]
[400492355,1767662489864,500.0,0.00032876,120]
[400492356,1767662492280,344.21204105,0.00032876,120]
[400492357,1767662492454,500.0,0.00032876,120]
[400492358,1767662492808,400.0,0.00032876,120]
[400492359,1767662494470,452.52829311,0.00032876,120]
[400492360,1767662495731,500.0,0.00032876,120]
[400492361,1767662496113,336.60597227,0.00032876,120]
[400492362,1767662496285,500.0,0.00032876,120]
[400492363,1767662496531,500.0,0.00032876,120]
[400492364,1767662497445,459.29069444,0.00032876,120]
[400492365,1767662498522,500.0,0.00032876,120]
[400492366,1767662498762,500.0,0.00032876,120]
[400492367,1767662500494,400.0,0.00032876,120]
[400492368,1767662501029,500.0,0.00032876,120]
[400492369,1767662501762,400.0,0.00032876,120]
[400492370,1767662501881,500.0,0.00032876,120]
[400492371,1767662502460,500.0,0.00032876,120]
[400492372,1767662502538,500.0,0.00032876,120]
[400492373,1767662502731,498.71682812,0.00032876,120]
[400492374,1767662502926,500.0,0.00032876,120]
[400492375,1767662503061,400.0,0.00032876,120]
[400492376,1767662503161,500.0,0.00032876,120]
[400492377,1767662503237,500.0,0.00032876,120]
[400492378,1767662503522,268.07008291,0.00032876,120]
[400492379,1767662503612,400.0,0.00032876,120]
[400492380,1767662506348,412.91319842,0.00032876,120]
[400492381,1767662506780,434.55462912,0.00032876,120]
[400492382,1767662507589,500.0,0.00032876,120]
[400492383,1767662507692,500.0,0.00032876,120]
[400492384,1767662508542,535.36234191,0.00032876,120]
[400492385,1767662508871,500.0,0.00032876,120]
[400492386,1767662509104,500.0,0.00032876,120]
[400492387,1767662509196,500.0,0.00032876,120]
[400492388,1767662510820,400.0,0.00032876,120]
[400492389,1767662511550,522.43092222,0.00032876,120]
[400492390,1767662511631,454.94020208,0.00032876,120]
[400492391,1767662511913,500.0,0.00032876,120]
[400492392,1767662512032,519.6466747,0.00032876,120]
[400492393,1767662512106,591.67732518,0.00032876,120]
[400492394,1767662514255,406.9507165,0.00032876,120]
[400492395,1767662514338,400.0,0.00032876,120]
[400492396,1767662515225,400.0,0.00032876,120]
[400492397,1767662515642,500.0,0.00032876,120]
[400492398,1767662515896,500.0,0.00032876,120]
[400492399,1767662517027,400.0,0.00032876,120]
[400492400,1767662517110,400.0,0.00032876,120]
[400492401,1767662517220,500.0,0.00032876,120]
[400492402,1767662517925,216.61182348,0.00032876,120]
[400492403,1767662518704,500.0,0.00032876,120]
[400492404,1767662518976,500.0,0.00032876,120]
[400492405,1767662519289,500.0,0.00032876,120]
[400492406,1767662522469,454.1645141,0.00032876,120]
[400492407,1767662523751,405.01239263,0.00032876,120]
[400492408,1767662525457,500.0,0.00032876,120]
[400492409,1767662525666,500.0,0.00032876,120]
[400492410,1767662525754,500.0,0.00032876,120]
[400492411,1767662526014,204.53898205,0.00032876,120]
[400492412,1767662528172,632.06600322,0.00032876,120]
[400492413,1767662529071,410.99449444,0.00032876,120]
[400492414,1767662529790,400.0,0.00032876,120]
[400492415,1767662530939,396.79874851,0.00032876,120]
[400492416,1767662531612,500.0,0.00032876,120]
[400492417,1767662531908,501.57216563,0.00032876,120]
[400492418,1767662532804,400.0,0.00032876,120]
[400492419,1767662534062,500.0,0.00032876,120]
[400492420,1767662534356,617.03993956,0.00032876,120]
[400492421,1767662534436,400.0,0.00032876,120]
[400492422,1767662534990,622.55300032,0.00032876,120]
[400492423,1767662536160,416.35171042,0.00032876,120]
[400492424,1767662539203,522.6390235,0.00032876,120]
[400492425,1767662540463,400.0,0.00032876,120]